fUSD/lending_fUSD_20260107
["ID","MTS","AMOUNT","RATE_DAILY","PERIOD"]
[400788156,1767829838654,-500.0,0.0001555,2]
[400788158,1767829838663,-500.0,0.0001555,2]
[400788160,1767829838672,-500.0,0.0001555,2]
[400788162,1767829838682,-500.0,0.0001555,2]
[400788164,1767829838691,-500.0,0.0001555,2]
[400788166,1767829838700,-500.0,0.0001555,2]
[400788168,1767829838710,-500.0,0.0001555,2]
[400788170,1767829838719,-500.0,0.0001555,2]
[400788172,1767829838730,-500.0,0.0001555,2]
[400788174,1767829838740,-500.0,0.0001555,2]
[400788176,1767829838749,-500.0,0.0001555,2]
[400788178,1767829838759,-500.0,0.0001555,2]
[400788180,1767829838768,-500.0,0.0001555,2]
[400788182,1767829838778,-500.0,0.0001555,2]
[400788184,1767829838787,-404.25522477,0.0001555,2]
[400788186,1767829838796,-500.0,0.0001555,2]
[400788188,1767829838805,-500.0,0.0001555,2]
[400788190,1767829838814,-500.0,0.0001555,2]
[400788192,1767829838826,-1500.0,0.0001555,2]
[400788194,1767829838834,-500.0,0.0001555,2]
[400788196,1767829838843,-2000.0,0.0001555,2]
[400788198,1767829838852,-1500.0,0.0001555,2]
[400788200,1767829838861,-2000.0,0.0001555,2]
[400788202,1767829838870,-1500.0,0.0001555,2]
[400788204,1767829838879,-2000.0,0.0001555,2]
[400788206,1767829838888,-1500.0,0.0001555,2]
[400788208,1767829838897,-2000.0,0.0001555,2]
[400788210,1767829838907,-1500.0,0.0001555,2]
[400788212,1767829838916,-2000.0,0.0001555,2]
[400788214,1767829838925,-1500.0,0.0001555,2]
[400788216,1767829838934,-2000.0,0.0001555,2]
[400788218,1767829838944,-620.0,0.0001555,2]
[400788220,1767829838953,-1500.0,0.0001555,2]
[400788222,1767829838962,-2000.0,0.0001555,2]
[400788224,1767829838972,-1500.0,0.0001555,2]
[400788226,1767829838981,-2000.0,0.0001555,2]
[400788228,1767829838991,-500.0,0.0001555,2]
[400788230,1767829839000,-1500.0,0.0001555,2]
[400788232,1767829839010,-2000.0,0.0001555,2]
[400788234,1767829839019,-500.0,0.0001555,2]
[400788236,1767829839029,-250.0,0.0001555,2]
[400788238,1767829839038,-1500.0,0.0001555,2]
[400788240,1767829839048,-2000.0,0.0001555,2]
[400788242,1767829839058,-500.0,0.0001555,2]
[400788244,1767829839067,-1500.0,0.0001555,2]
[400788246,1767829839077,-250.0,0.0001555,2]
[400788248,1767829839086,-2000.0,0.0001555,2]
[400788250,1767829839096,-500.0,0.0001555,2]
[400788252,1767829839105,-448.72451731,0.0001555,2]
[400788254,1767829839115,-500.0,0.0001555,2]
[400788256,1767829839124,-500.0,0.0001555,2]
[400788258,1767829839134,-500.0,0.0001555,2]
[400788260,1767829839144,-500.0,0.0001555,2]
[400788262,1767829839153,-500.0,0.0001555,2]
[400788264,1767829839162,-500.0,0.0001555,2]
[400788266,1767829839172,-500.0,0.0001555,2]
[400788268,1767829839182,-578.20924308,0.0001555,2]
[400788270,1767829839192,-151.0,0.0001555,2]
[400788272,1767829839201,-11169.8,0.00015597,2]
[400788274,1767829839211,-500.0,0.00015602,2]
[400788277,1767829839220,-501.0,0.00015602,2]
[400788279,1767829839230,-602.0,0.00015602,2]
[400788281,1767829839239,-1280.0,0.00015602,2]
[400788283,1767829839248,-457.0,0.00015602,2]
[400788285,1767829839258,-1856.72,0.00015616,2]
[400788287,1767829839267,-1000.0,0.00015621,2]
[400788289,1767829839276,-166.49390426,0.00015621,2]
[400788291,1767829839286,-1000.0,0.00015621,2]
[400788293,1767829839295,-711.87890519,0.00015621,2]
[400788295,1767829839304,-911.91622264,0.00015621,2]
[400788297,1767829839313,-1000.0,0.00015621,2]
[400788299,1767829839322,-1056.0741427,0.00015621,2]
[400788301,1767829839331,-1002.16378022,0.00015621,2]
[400788303,1767829839340,-1000.0,0.00015621,2]
[400788305,1767829839349,-500.0,0.00015621,2]
[400788307,1767829839358,-1000.0,0.00015621,2]
[400788309,1767829839367,-1000.0,0.00015621,2]
[400788310,1767829839376,-1000.0,0.00015621,2]
[400788312,1767829839386,-1000.0,0.00015621,2]
[400788315,1767829839395,-1000.0,0.00015621,2]
[400788317,1767829839404,-311.64161933,0.00015621,2]
[400788319,1767829839413,-1000.0,0.00015621,2]
[400788321,1767829839423,-1000.0,0.00015621,2]
[400788323,1767829839432,-1000.0,0.00015621,2]
[400788325,1767829839441,-1000.0,0.00015621,2]
[400788326,1767829839450,-1000.0,0.00015621,2]
[400788329,1767829839461,-913.08976684,0.00015621,2]
[400788331,1767829839470,-1000.0,0.00015621,2]
[400788333,1767829839479,-1000.0,0.00015621,2]
[400788335,1767829839488,-1000.0,0.00015621,2]
[400788337,1767829839498,-1000.0,0.00015621,2]
[400788339,1767829839508,-500.0,0.00015656,2]
[400788341,1767829839517,-501.0,0.00015656,2]
[400788343,1767829839527,-602.0,0.00015656,2]
[400788345,1767829839537,-1280.0,0.00015656,2]
[400788347,1767829839546,-457.0,0.00015656,2]
[400788349,1767829839556,-1463.91151844,0.00015696,2]
[400788351,1767829839565,-500.0,0.00015711,2]
[400788353,1767829839575,-501.0,0.00015711,2]
[400788355,1767829839584,-602.0,0.00015711,2]
[400788357,1767829839593,-1280.0,0.00015711,2]
[400788359,1767829839603,-457.0,0.00015711,2]
[400788361,1767829839612,-500.0,0.00015766,2]
[400788363,1767829839622,-501.0,0.00015766,2]
[400788365,1767829839631,-602.0,0.00015766,2]
[400788367,1767829839641,-1280.0,0.00015766,2]
[400788369,1767829839651,-457.0,0.00015766,2]
[400788371,1767829839660,-500.0,0.00015775,2]
[400788373,1767829839670,-15428.78044779,0.00015789,2]
[400788375,1767829839679,-406.89851448,0.00015821,2]
[400788377,1767829839689,-501.0,0.00015821,2]
[400788379,1767829839698,-602.0,0.00015821,2]
[400788381,1767829839707,-1280.0,0.00015821,2]
[400788383,1767829839717,-457.0,0.00015821,2]
[400788386,1767829839738,-433.0,0.00015824,2]
[400788388,1767829839758,-500.0,0.00015863,2]
[400788389,1767829839774,-501.0,0.00015876,2]
[400788391,1767829839785,-602.0,0.00015876,2]
[400788393,1767829839794,-1280.0,0.00015876,2]
[400788395,1767829839804,-457.0,0.00015876,2]
[400788398,1767829839813,-1856.72,0.0001589,2]
[400788400,1767829839822,-882.0,0.0001589,2]
[400788402,1767829839831,-501.0,0.0001593,2]
[400788404,1767829839840,-602.0,0.0001593,2]
[400788406,1767829839850,-1280.0,0.0001593,2]
[400788408,1767829839859,-457.0,0.0001593,2]
[400788410,1767829839868,-15014.88237488,0.0001594,2]
[400788412,1767829839878,-500.0,0.00015984,2]
[400788414,1767829839887,-500.0,0.00015984,2]
[400788416,1767829839896,-500.0,0.00015984,2]
[400788418,1767829839904,-501.0,0.00015985,2]
[400788420,1767829839913,-602.0,0.00015985,2]
[400788422,1767829839923,-1280.0,0.00015985,2]
[400788424,1767829839933,-457.0,0.00015985,2]
[400788426,1767829839942,-412.48144207,0.00015993,2]
[400788428,1767829839950,-412.48144207,0.00015993,2]
[400788430,1767829839959,-500.0,0.00015999,2]
[400788432,1767829839969,-569.18,0.00015999,2]
[400788434,1767829839978,-500.0,0.00015999,2]
[400788436,1767829839987,-500.0,0.00015999,2]
[400788438,1767829839996,-500.0,0.00015999,2]
[400788440,1767829840005,-249.063448,0.00016,2]
[400788442,1767829840014,-495.25,0.00016034,2]
[400788444,1767829840023,-501.0,0.0001604,2]
[400788446,1767829840032,-602.0,0.0001604,2]
[400788448,1767829840043,-1280.0,0.0001604,2]
[400788450,1767829840051,-457.0,0.0001604,2]
[400788452,1767829840060,-501.0,0.00016095,2]
[400788454,1767829840070,-602.0,0.00016095,2]
[400788456,1767829840080,-1280.0,0.00016095,2]
[400788458,1767829840091,-457.0,0.00016095,2]
[400788460,1767829840100,-151.0,0.00016098,2]
[400788462,1767829840110,-595.37131296,0.00016098,2]
[400788464,1767829840119,-154.16307501,0.00016098,2]
[400788466,1767829840128,-500.0,0.00016115,2]
[400788468,1767829840137,-569.18,0.00016115,2]
[400788470,1767829840147,-500.0,0.00016115,2]
[400788472,1767829840157,-500.0,0.00016115,2]
[400788474,1767829840166,-500.0,0.00016115,2]
[400788476,1767829840175,-9999.99,0.00016116,2]
[400788478,1767829840184,-501.0,0.00016149,2]
[400788480,1767829840194,-602.0,0.00016149,2]
[400788520,1767829840460,-1280.0,0.00016149,2]
[400788524,1767829840470,-457.0,0.00016149,2]
[400788528,1767829840480,-1856.72,0.00016164,2]
[400788531,1767829840490,-500.0,0.00016168,2]
[400788532,1767829840499,-500.0,0.00016168,2]
[400788535,1767829840508,-508.99338834,0.00016168,2]
[400788539,1767829840517,-821.82288534,0.00016168,2]
[400788542,1767829840527,-515.65451742,0.00016168,2]
[400788545,1767829840536,-1029.13192156,0.00016168,2]
[400788548,1767829840545,-1449.69083076,0.00016168,2]
[400788552,1767829840554,-1500.0,0.00016168,2]
[400788554,1767829840563,-1500.0,0.00016168,2]
[400788557,1767829840572,-1500.0,0.00016168,2]
[400788560,1767829840581,-1500.0,0.00016168,2]
[400788563,1767829840591,-1500.0,0.00016168,2]
[400788566,1767829840599,-1500.0,0.00016168,2]
[400788570,1767829840609,-500.73448024,0.00016168,2]
[400788572,1767829840618,-1009.96734995,0.00016168,2]
[400788573,1767829840627,-1500.0,0.00016168,2]
[400788575,1767829840636,-1500.0,0.00016168,2]
[400788577,1767829840645,-1500.0,0.00016168,2]
[400788579,1767829840655,-1628.37348131,0.00016168,2]
[400788581,1767829840664,-1500.0,0.00016168,2]
[400788583,1767829840674,-1500.0,0.00016168,2]
[400788585,1767829840683,-516.0,0.00016204,2]
[400788587,1767829840691,-609.43948019,0.00016204,2]
[400788589,1767829840700,-1286.2212164,0.00016204,2]
[400788591,1767829840709,-471.61097423,0.00016204,2]
[400788592,1767829840718,-15428.78044779,0.00016211,2]
[400788593,1767829840731,-587.0,0.00016315,2]
[400788594,1767829840740,-587.0,0.00016315,2]
[400788595,1767829840750,-500.0,0.00016323,2]
[400788596,1767829840759,-500.0,0.00016323,2]
[400788597,1767829840769,-500.0,0.00016323,2]
[400788598,1767829840778,-200.67704287,0.00016338,2]
[400788599,1767829840787,-319.8416144,0.00016344,2]
[400788600,1767829840795,-569.18,0.00016344,2]
[400788601,1767829840805,-500.0,0.00016344,2]
[400788602,1767829840814,-500.0,0.00016344,2]
[400788604,1767829840823,-500.0,0.00016344,2]
[400788605,1767829840832,-833.0,0.000164,2]
[400788607,1767829840841,-833.0,0.000164,2]
[400788609,1767829840850,-833.0,0.000164,2]
[400788611,1767829840859,-500.0,0.00016411,2]
[400788613,1767829840868,-595.73,0.00016413,2]
[400788615,1767829840877,-15014.88237488,0.0001643,2]
[400788617,1767829840887,-1463.91151844,0.00016431,2]
[400788619,1767829840896,-2351.0,0.00016434,2]
[400788621,1767829840905,-500.0,0.00016437,2]
[400788623,1767829840915,-500.0,0.00016437,2]
[400788625,1767829840924,-500.0,0.00016437,2]
[400788627,1767829840932,-1081.65877337,0.00016438,2]
[400788629,1767829840942,-1081.65877337,0.00016438,2]
[400788631,1767829840951,-1081.65877337,0.00016438,2]
[400788633,1767829840960,-1081.65877337,0.00016438,2]
[400788635,1767829840969,-1081.65877337,0.00016438,2]
[400788637,1767829840978,-1081.65877337,0.00016438,2]
[400788639,1767829840987,-1081.65877337,0.00016438,2]
[400788642,1767829840996,-1081.65877337,0.00016438,2]
[400788644,1767829841005,-1081.65877337,0.00016438,2]
[400788645,1767829841014,-1081.65877337,0.00016438,2]
[400788647,1767829841023,-1081.65877337,0.00016438,2]
[400788649,1767829841033,-1081.65877337,0.00016438,2]
[400788651,1767829841042,-1081.65877337,0.00016438,2]
[400788654,1767829841051,-1081.65877337,0.00016438,2]
[400788656,1767829841061,-1081.65877337,0.00016438,2]
[400788658,1767829841071,-1081.65877337,0.00016438,2]
[400788659,1767829841080,-1081.65877337,0.00016438,2]
[400788661,1767829841089,-1081.65877337,0.00016438,2]
[400788664,1767829841098,-1081.65877337,0.00016438,2]
[400788666,1767829841107,-1081.65877337,0.00016438,2]
[400788668,1767829841116,-1081.65877337,0.00016438,2]
[400788670,1767829841126,-1081.65877337,0.00016438,2]
[400788672,1767829841135,-1081.65877337,0.00016438,2]
[400788674,1767829841144,-1081.65877337,0.00016438,2]
[400788676,1767829841155,-1081.65877337,0.00016438,2]
[400788678,1767829841166,-1081.65877337,0.00016438,2]
[400788680,1767829841176,-1081.65877337,0.00016438,2]
[400788682,1767829841186,-1081.65877337,0.00016438,2]
[400788684,1767829841195,-1081.65877337,0.00016438,2]
[400788686,1767829841206,-1081.65877337,0.00016438,2]
[400788688,1767829841216,-1081.65877337,0.00016438,2]
[400788690,1767829841225,-1081.65877337,0.00016438,2]
[400788692,1767829841236,-1081.65877337,0.00016438,2]
[400788694,1767829841246,-1081.65877337,0.00016438,2]
[400788696,1767829841255,-1081.65877337,0.00016438,2]
[400788698,1767829841265,-1081.65877337,0.00016438,2]
[400788700,1767829841274,-1081.65877337,0.00016438,2]
[400788703,1767829841284,-1081.65877337,0.00016438,2]
[400788705,1767829841293,-1081.65877337,0.00016438,2]
[400788707,1767829841303,-1081.65877337,0.00016438,2]
[400788709,1767829841312,-1081.65877337,0.00016438,2]
[400788711,1767829841323,-1208.95311931,0.00016438,2]
[400788713,1767829841333,-1208.95311931,0.00016438,2]
[400788715,1767829841342,-1208.95311931,0.00016438,2]
[400788717,1767829841352,-1208.95311931,0.00016438,2]
[400788719,1767829841361,-1208.95311931,0.00016438,2]
[400788721,1767829841371,-1208.95311931,0.00016438,2]
[400788723,1767829841380,-1208.95311931,0.00016438,2]
[400788725,1767829841389,-1208.95311931,0.00016438,2]
[400788727,1767829841398,-1208.95311931,0.00016438,2]
[400788729,1767829841409,-1208.95311931,0.00016438,2]
[400788731,1767829841418,-1208.95311931,0.00016438,2]
[400788733,1767829841427,-1208.95311931,0.00016438,2]
[400788735,1767829841436,-1208.95311931,0.00016438,2]
[400788737,1767829841446,-1208.95311931,0.00016438,2]
[400788739,1767829841455,-1208.95311931,0.00016438,2]
[400788741,1767829841465,-1208.95311931,0.00016438,2]
[400788743,1767829841474,-1208.95311931,0.00016438,2]
[400788745,1767829841483,-1208.95311931,0.00016438,2]
[400788747,1767829841493,-1208.95311931,0.00016438,2]
[400788749,1767829841503,-1208.95311931,0.00016438,2]
[400788751,1767829841513,-1208.95311931,0.00016438,2]
[400788753,1767829841523,-1208.95311931,0.00016438,2]
[400788755,1767829841533,-1208.95311931,0.00016438,2]
[400788757,1767829841543,-1208.95311931,0.00016438,2]
[400788759,1767829841553,-1208.95311931,0.00016438,2]
[400788761,1767829841562,-1208.95311931,0.00016438,2]
[400788763,1767829841572,-1208.95311931,0.00016438,2]
[400788765,1767829841581,-1208.95311931,0.00016438,2]
[400788767,1767829841590,-1208.95311931,0.00016438,2]
[400788769,1767829841599,-1208.95311931,0.00016438,2]
[400788772,1767829841608,-1208.95311931,0.00016438,2]
[400788773,1767829841618,-1208.95311931,0.00016438,2]
[400788776,1767829841627,-1157.75039898,0.00016438,2]
[400788778,1767829841636,-1157.75039898,0.00016438,2]
[400788780,1767829841645,-1157.75039898,0.00016438,2]
[400788782,1767829841655,-1157.75039898,0.00016438,2]
[400788783,1767829841665,-1157.75039898,0.00016438,2]
[400788785,1767829841674,-1157.75039898,0.00016438,2]
[400788788,1767829841683,-1157.75039898,0.00016438,2]
[400788790,1767829841693,-1157.75039898,0.00016438,2]
[400788791,1767829841702,-1157.75039898,0.00016438,2]
[400788793,1767829841712,-1157.75039898,0.00016438,2]
[400788796,1767829841721,-1157.75039898,0.00016438,2]
[400788797,1767829841733,-1157.75039898,0.00016438,2]
[400788800,1767829841743,-1157.75039898,0.00016438,2]
[400788802,1767829841752,-1157.75039898,0.00016438,2]
[400788804,1767829841761,-1157.75039898,0.00016438,2]
[400788806,1767829841771,-1157.75039898,0.00016438,2]
[400788808,1767829841781,-1157.75039891,0.00016438,2]
[400788809,1767829841790,-500.0,0.00016438,2]
[400788811,1767829841801,-1856.72,0.00016438,2]
[400788814,1767829841811,-800.0,0.00016438,2]
[400788816,1767829841822,-412.48144207,0.0001647,2]
[400788817,1767829841832,-500.0,0.00016493,2]
[400788819,1767829841843,-500.0,0.00016548,2]
[400788822,1767829841852,-155.2,0.00016584,2]
[400788823,1767829841861,-188.33554362,0.00016602,2]
[400788825,1767829841869,-10000.0,0.00016616,2]
[400788827,1767829841879,-15428.78044779,0.00016633,2]
[400788829,1767829841888,-500.0,0.00016643,2]
[400788831,1767829841897,-500.0,0.00016643,2]
[400788833,1767829841906,-500.0,0.00016643,2]
[400788835,1767829841915,-500.0,0.00016643,2]
[400788837,1767829841924,-500.0,0.00016643,2]
[400788839,1767829841932,-628.50709886,0.00016643,2]
[400788841,1767829841942,-336.03289894,0.00016643,2]
[400788843,1767829841951,-617.40005154,0.00016646,2]
[400788845,1767829841960,-1856.72,0.00016712,2]
[400788847,1767829841969,-165.13,0.00016712,2]
[400788849,1767829841979,-501.70391837,0.00016716,2]
[400788851,1767829841988,-2000.0,0.00016716,2]
[400788853,1767829841997,-2000.0,0.00016716,2]
[400788855,1767829842006,-2000.0,0.00016716,2]
[400788857,1767829842015,-2000.0,0.00016716,2]
[400788859,1767829842025,-2000.0,0.00016716,2]
[400788861,1767829842034,-2000.0,0.00016716,2]
[400788863,1767829842043,-2000.0,0.00016716,2]
[400788865,1767829842051,-376.44941512,0.00016716,2]
[400788867,1767829842061,-2000.0,0.00016716,2]
[400788869,1767829842070,-2000.0,0.00016716,2]
[400788871,1767829842079,-833.0,0.0001672,2]
[400788873,1767829842088,-157.15193471,0.00016796,2]
[400788875,1767829842098,-634.29540262,0.00016821,2]
[400788877,1767829842108,-348.0,0.00016842,2]
[400788880,1767829842119,-619.51019964,0.00016871,2]
[400788882,1767829842127,-511.13510878,0.0001689,2]
[400788884,1767829842137,-334.5472959,0.00016919,2]
[400788886,1767829842146,-287.61899177,0.00016919,2]
[400788888,1767829842156,-642.94,0.00016919,2]
[400788890,1767829842165,-15014.88237488,0.0001692,2]
[400788892,1767829842175,-1856.72,0.00016986,2]
[400788894,1767829842185,-250.0,0.00017,2]
[400788896,1767829842194,-200.67704286,0.00017031,2]
[400788898,1767829842203,-162.0,0.0001704,2]
[400788899,1767829842212,-304.2281947,0.00017043,2]
[400788902,1767829842223,-15428.78044779,0.00017056,2]
[400788903,1767829842235,-736.0,0.00017132,2]
[400788906,1767829842246,-168.0,0.00017152,2]
[400788907,1767829842255,-162.0,0.00017162,2]
[400788910,1767829842266,-1463.91151844,0.00017165,2]
[400788912,1767829842275,-1000.0,0.00017191,2]
[400788913,1767829842284,-222.95362607,0.00017191,2]
[400788916,1767829842294,-640.24385345,0.00017194,2]
[400788918,1767829842303,-1000.0,0.000172,2]
[400788921,1767829842313,-595.73,0.00017206,2]
[400788923,1767829842322,-168.0,0.00017207,2]
[400788925,1767829842332,-827.5,0.00017232,2]
[400788927,1767829842341,-1856.72,0.0001726,2]
[400788929,1767829842350,-2500.0,0.00017264,2]
[400788930,1767829842360,-500.0,0.00017264,2]
[400788932,1767829842370,-2500.0,0.00017264,2]
[400788934,1767829842379,-500.0,0.00017264,2]
[400788936,1767829842388,-2500.0,0.00017264,2]
[400788939,1767829842399,-1000.0,0.00017264,2]
[400788941,1767829842409,-1870.47980866,0.00017264,2]
[400788942,1767829842420,-2500.0,0.00017264,2]
[400788945,1767829842430,-176.00349903,0.00017264,2]
[400788947,1767829842440,-1000.0,0.00017321,2]
[400788949,1767829842449,-155.2,0.00017344,2]
[400788951,1767829842460,-833.0,0.0001736,2]
[400788952,1767829842469,-634.2954026,0.00017361,2]
[400788954,1767829842478,-1688.95959214,0.00017368,2]
[400788956,1767829842487,-1241.95354039,0.00017368,2]
[400788958,1767829842497,-157.15193471,0.00017396,2]
[400788961,1767829842507,-15014.88237488,0.0001741,2]
[400788962,1767829842517,-500.0,0.0001742,2]
[400788965,1767829842527,-1000.0,0.00017462,2]
[400788967,1767829842537,-2000.0,0.000175,2]
[400788969,1767829842546,-1856.72,0.00017534,2]
[400788970,1767829842556,-240.82358149,0.00017534,2]
[400788972,1767829842565,-1450.0,0.00017534,2]
[400788974,1767829842574,-1000.0,0.00017549,2]
[400788976,1767829842583,-168.0,0.00017557,2]
[400788978,1767829842592,-1000.0,0.00017581,2]
[400788980,1767829842601,-1000.0,0.00017596,2]
[400788982,1767829842611,-1000.0,0.000176,2]
[400788984,1767829842621,-288.0,0.0001762,2]
[400788986,1767829842630,-1000.0,0.00017632,2]
[400788988,1767829842638,-1000.0,0.00017638,2]
[400788990,1767829842647,-4936.02146803,0.0001764,2]
[400788993,1767829842656,-168.0,0.00017656,2]
[400788994,1767829842666,-569.18,0.0001768,2]
[400788997,1767829842675,-506.42348911,0.0001768,2]
[400788999,1767829842688,-419.33594592,0.0001768,2]
[400789000,1767829842697,-500.0,0.0001768,2]
[400789002,1767829842707,-25000.0,0.00017706,3]
[400789005,1767829842716,-25000.0,0.00017715,3]
[400789006,1767829842728,-200.67704286,0.00017723,2]
[400789008,1767829842737,-25000.0,0.00017724,3]
[400789011,1767829842746,-25000.0,0.00017733,3]
[400789012,1767829842755,-450.04111853,0.00017739,2]
[400789014,1767829842765,-25000.0,0.00017742,3]
[400789016,1767829842775,-663.93287602,0.00017742,2]
[400789018,1767829842784,-25000.0,0.0001775,3]
[400789020,1767829842793,-25000.0,0.00017759,3]
[400789022,1767829842804,-1000.0,0.00017766,2]
[400789024,1767829842814,-25000.0,0.00017768,3]
[400789026,1767829842823,-25000.0,0.00017777,3]
[400789029,1767829842832,-25000.0,0.00017786,3]
[400789030,1767829842842,-699.67317378,0.00017793,2]
[400789033,1767829842851,-25000.0,0.00017794,3]
[400789034,1767829842861,-1000.0,0.000178,2]
[400789037,1767829842870,-833.0,0.00017802,2]
[400789039,1767829842881,-1000.0,0.00017802,2]
[400789040,1767829842892,-25000.0,0.00017803,3]
[400789043,1767829842901,-1856.85654479,0.00017808,2]
[400789045,1767829842911,-250.0,0.00017808,3]
[400789047,1767829842920,-500.0,0.00017811,2]
[400789049,1767829842929,-500.0,0.00017811,2]
[400789051,1767829842939,-500.0,0.00017811,2]
[400789053,1767829842950,-25000.0,0.00017812,3]
[400789055,1767829842959,-569.18,0.00017812,2]
[400789057,1767829842968,-2906.003,0.00017812,2]
[400789059,1767829842977,-175.448,0.00017812,2]
[400789061,1767829842988,-3000.0,0.00017812,2]
[400789063,1767829842997,-505.38555235,0.00017812,2]
[400789065,1767829843006,-3000.0,0.00017812,2]
[400789067,1767829843015,-3000.0,0.00017812,2]
[400789069,1767829843024,-1000.0,0.00017813,2]
[400789071,1767829843033,-4451.99492,0.0001782,2]
[400789073,1767829843043,-4451.99493,0.0001782,2]
[400789075,1767829843053,-25000.0,0.00017821,3]
[400789077,1767829843062,-346.0,0.00017823,2]
[400789079,1767829843072,-1000.0,0.00017823,2]
[400789081,1767829843082,-1000.0,0.00017823,2]
[400789083,1767829843092,-25000.0,0.0001783,3]
[400789085,1767829843101,-261.94980575,0.0001783,2]
[400789087,1767829843110,-4451.99492,0.0001783,2]
[400789089,1767829843120,-25000.0,0.00017838,3]
[400789091,1767829843129,-25000.0,0.00017847,3]
[400789093,1767829843139,-200.0,0.00017855,2]
[400789095,1767829843148,-200.0,0.00017856,2]
[400789097,1767829843158,-25000.0,0.00017856,3]
[400789099,1767829843167,-200.0,0.00017856,2]
[400789101,1767829843176,-200.0,0.00017856,2]
[400789103,1767829843185,-4451.99493,0.0001786,2]
[400789105,1767829843195,-25000.0,0.00017865,3]
[400789107,1767829843204,-500.0,0.00017873,2]
[400789109,1767829843213,-25000.0,0.00017874,3]
[400789111,1767829843222,-4451.99493,0.0001788,2]
[400789113,1767829843231,-823.0,0.00017882,2]
[400789115,1767829843241,-823.0,0.00017882,2]
[400789117,1767829843250,-25000.0,0.00017882,3]
[400789119,1767829843259,-569.18,0.00017888,2]
[400789121,1767829843268,-500.0,0.0001789,2]
[400789123,1767829843277,-500.0,0.0001789,2]
[400789125,1767829843286,-500.0,0.0001789,2]
[400789127,1767829843295,-25000.0,0.00017891,3]
[400789129,1767829843304,-569.18,0.00017899,2]
[400789130,1767829843313,-25000.0,0.000179,3]
[400789132,1767829843322,-1463.91151844,0.000179,2]
[400789135,1767829843331,-634.2954026,0.000179,2]
[400789137,1767829843341,-15014.88237488,0.000179,2]
[400789139,1767829843351,-1574.70975266,0.000179,2]
[400789141,1767829843360,-12291.40483668,0.000179,2]
[400789143,1767829843370,-421.97377416,0.000179,3]
[400789145,1767829843379,-181.45660226,0.000179,2]
[400789147,1767829843388,-10945.0,0.000179,2]
[400789149,1767829843397,-4451.99492,0.0001791,2]
[400789150,1767829843407,-1000.0,0.00017916,2]
[400789153,1767829843416,-250.0,0.00017947,2]
[400789155,1767829843425,-1000.0,0.00017963,2]
[400789157,1767829843435,-500.0,0.00017969,2]
[400789158,1767829843444,-500.0,0.00017969,2]
[400789160,1767829843453,-500.0,0.0001797,2]
[400789162,1767829843462,-500.0,0.0001797,2]
[400789164,1767829843472,-1000.0,0.0001797,2]
[400789167,1767829843482,-500.0,0.0001797,2]
[400789169,1767829843492,-1000.0,0.0001797,2]
[400789170,1767829843502,-500.0,0.0001797,2]
[400789173,1767829843511,-1000.0,0.0001797,2]
[400789175,1767829843521,-500.0,0.0001797,2]
[400789177,1767829843530,-1000.0,0.0001797,2]
[400789178,1767829843540,-983.46328676,0.0001797,2]
[400789180,1767829843549,-1000.0,0.0001797,2]
[400789183,1767829843559,-1000.0,0.0001797,2]
[400789184,1767829843568,-1000.0,0.0001797,2]
[400789186,1767829843578,-1000.0,0.0001797,2]
[400789188,1767829843588,-1000.0,0.0001797,2]
[400789191,1767829843599,-1000.0,0.0001797,2]
[400789193,1767829843608,-1244.02944176,0.0001797,2]
[400789195,1767829843619,-150.0,0.00017973,2]
[400789197,1767829843628,-150.0,0.00017973,2]
[400789199,1767829843638,-150.1,0.00017981,2]
[400789201,1767829843648,-150.1,0.00017981,2]
[400789203,1767829843657,-163.90468149,0.00017981,2]